bitfinex-derivatives/quotes_SOLF0:USTF0_20250509
["timestamp","ask_amount","ask_price","bid_price","bid_amount"]
[1746766793149,6.1774,161.91,161.88,6.178]
[1746766793743,6.1776,161.9,161.87,6.1785]
[1746766795054,6.1776,161.9,161.88,6.1783]
[1746766796354,6.1773,161.91,161.88,6.1783]
[1746766796554,6.1773,161.91,161.89,6.1779]
[1746766796853,29.7434,161.94,161.89,6.1779]
[1746766797358,29.7434,161.94,161.88,6.1781]
[1746766797855,6.1772,161.91,161.88,6.1781]
[1746766799957,6.1769,161.92,161.89,6.1779]
[1746766800855,29.7434,161.94,161.88,6.1781]
[1746766801064,29.7434,161.94,161.85,37.97889298]
[1746766801256,29.7434,161.94,161.85,2.0915]
[1746766801257,35.92459298,161.94,161.85,2.0915]
[1746766801460,6.18119298,161.91,161.82,1.9534]
[1746766801654,55.32,161.9,161.82,1.9534]
[1746766801855,6.1798,161.85,161.8,27.66]
[1746766802254,55.32,161.9,161.8,27.66]
[1746766802456,55.32,161.9,161.81,2.1138]
[1746766802655,27.68,161.9,161.82,6.18119298]
[1746766802850,27.68,161.9,161.82,33.86119298]
[1746766803061,27.68,161.9,161.86,6.1788]
[1746766803260,27.68,161.9,161.84,27.66]
[1746766804357,27.68,161.9,161.87,6.1784]
[1746766805861,27.68,161.9,161.88,6.1783]
[1746766806061,29.7434,161.94,161.84,27.66]
[1746766806262,29.7434,161.94,161.85,2.0233]
[1746766806457,6.1767,161.93,161.89,6.1777]
[1746766807363,33.8561,161.94,161.85,8.20449298]
[1746766807561,27.68,161.94,161.86,29.7267]
[1746766808363,6.1764,161.93,161.86,29.7267]
[1746766809067,6.1764,161.93,161.9,6.1775]
[1746766809269,6.1768,161.92,161.86,29.7267]
[1746766810169,6.1768,161.92,161.89,6.1776]
[1746766811370,27.68,161.94,161.9,6.1775]
[1746766812171,6.1768,161.92,161.89,6.1778]
[1746766814374,6.1763,161.94,161.89,6.1778]
[1746766814565,27.66,161.96,161.89,6.1778]
[1746766814870,27.66,161.96,161.88,27.66]
[1746766815260,27.66,161.96,161.91,6.177]
[1746766815969,33.8352,161.96,161.91,6.177]
[1746766816270,27.66,161.96,161.92,6.1767]
[1746766817073,27.66,161.96,161.93,6.1764]
[1746766817567,12.35639298,161.97,161.93,6.1764]
[1746766817773,40.01639298,161.97,161.93,6.1764]
[1746766818075,40.01639298,161.97,161.94,6.1759]
[1746766818279,57.2427,161.98,161.88,27.66]
[1746766818869,27.66,161.98,161.88,33.84119298]
[1746766819275,27.66,161.98,161.97,6.1749]
[1746766819478,29.6207,161.99,161.97,6.1749]
[1746766820175,1.9607,161.99,161.92,55.3]
[1746766820774,1.9607,161.99,161.98,6.1745]
[1746766821274,1.9607,161.99,161.97,6.1747]
[1746766823573,33.8134,162.01,161.97,6.1747]
[1746766823779,359.0004,162.03,161.92,55.3]
[1746766823981,386.6404,162.03,161.93,4.1285]
[1746766824173,392.8131,162.03,161.99,6.1739]
[1746766824779,392.8131,162.03,162.0,6.1737]
[1746766825272,386.6404,162.03,162.01,6.1733]
[1746766825677,359.0004,162.03,162.01,6.1733]
[1746766826180,359.0004,162.03,162.02,6.173]
[1746766826377,357.0,162.03,162.02,6.173]
[1746766827982,357.0,162.03,162.0,6.1734]
[1746766828785,357.0,162.03,162.01,6.1733]
[1746766829783,6.1724,162.04,162.01,6.1733]
[1746766830982,6.18119298,162.06,161.93,2.0521]
[1746766831184,8.13129298,162.06,161.93,57.3321]
[1746766831384,1.9501,162.06,161.94,6.18119298]
[1746766831681,1.9501,162.06,162.01,6.173]
[1746766832383,6.1724,162.04,162.01,6.173]
[1746766834386,6.1719,162.05,162.02,6.1729]
[1746766834778,29.6752,162.07,161.98,27.64]
[1746766834978,6.1728,162.03,161.98,27.64]
[1746766835282,29.6752,162.07,161.98,27.64]
[1746766835990,6.1724,162.04,162.01,6.1733]
[1746766836178,29.6752,162.07,161.98,27.64]
[1746766837085,6.1725,162.04,162.0,6.1736]
[1746766837483,29.6752,162.07,161.98,27.64]
[1746766837979,27.66,162.09,161.98,33.82119298]
[1746766838178,27.66,162.09,161.99,2.1132]
[1746766838379,6.171,162.08,162.04,6.1719]
[1746766838579,6.171,162.08,162.02,27.64]
[1746766839080,6.171,162.08,162.04,6.1719]
[1746766839279,6.1711,162.07,162.04,6.1719]
[1746766839584,418.44119298,162.1,162.02,33.8129]
[1746766839786,6.1729,162.03,161.98,27.64]
[1746766840280,6.1729,162.03,161.99,6.174]
[1746766840486,6.173,162.02,161.99,6.174]
[1746766840787,55.26,162.06,161.98,33.8143]
[1746766841177,6.1732,162.02,161.98,6.1743]
[1746766841379,55.26,162.06,161.97,57.2275]
[1746766841380,57.2781,162.06,161.97,6.1748]
[1746766841583,59.3105,162.06,161.97,6.1748]
[1746766841788,6.174,162.0,161.96,6.1751]
[1746766842087,59.3105,162.06,161.95,55.24]
[1746766842289,6.1731,162.02,161.97,6.1745]
[1746766842487,59.3105,162.06,161.95,55.24]
[1746766842688,59.3105,162.06,161.95,27.62]
[1746766842990,6.174,162.0,161.96,6.1751]
[1746766843792,6.174,162.0,161.97,6.1747]
[1746766844188,6.1732,162.02,161.97,6.1747]
[1746766844485,2.0554,162.05,161.96,6.1751]
[1746766844690,6.18119298,162.04,161.95,55.28]
[1746766844990,6.18119298,162.04,161.91,59.2679]
[1746766845185,6.18119298,162.04,161.91,57.3455]
[1746766845382,6.1741,162.0,161.95,6.1754]
[1746766845589,61.4941,162.0,161.95,6.1754]
[1746766845993,6.1742,161.99,161.95,6.1754]
[1746766846492,55.32,162.0,161.89,55.32]
[1746766846692,6.1749,161.97,161.89,55.32]
[1746766847394,57.3626,162.0,161.96,6.1751]
[1746766848293,29.6826,162.0,161.97,6.1746]
[1746766848492,27.64,162.0,161.91,6.18119298]
[1746766848688,55.3,162.03,161.92,55.3]
[1746766849290,33.8129,162.03,161.93,2.0228]
[1746766849492,33.8129,162.03,161.94,1.9712]
[1746766850292,33.8129,162.03,161.94,8.15239298]
[1746766850293,27.64,162.03,161.94,8.15239298]
[1746766850891,33.8128,162.03,161.94,8.15239298]
[1746766851892,33.8128,162.03,161.99,6.1738]
[1746766852584,6.1731,162.02,161.99,6.1738]
[1746766852995,6.1731,162.02,161.98,6.1743]
[1746766853395,27.64,162.03,161.98,6.1743]
[1746766853396,6.1734,162.01,161.98,6.1743]
[1746766859300,6.1734,162.01,161.99,6.1741]
[1746766859497,6.1734,162.01,161.96,55.28]
[1746766860101,6.1738,162.0,161.96,55.28]
[1746766860598,6.1751,161.97,161.93,8.199]
[1746766860900,6.1751,161.97,161.93,6.1762]
[1746766861097,27.74,162.0,161.93,6.1762]
[1746766861300,6.1751,161.97,161.94,6.176]
[1746766861798,6.1752,161.96,161.93,6.1763]
[1746766862000,27.64,161.99,161.91,55.36]
[1746766862197,29.6152,161.99,161.91,55.36]
[1746766862901,6.1755,161.96,161.93,6.1764]
[1746766863105,27.64,161.99,161.91,55.36]
[1746766863598,6.1747,161.98,161.94,6.1757]
[1746766863798,27.64,161.99,161.92,6.18119298]
[1746766864001,55.34,162.02,161.93,1.9109]
[1746766864303,6.1738,162.0,161.93,1.9109]
[1746766864599,55.34,162.02,161.93,1.9109]
[1746766865205,55.34,162.02,161.96,6.1749]
[1746766865403,27.64,162.02,161.95,55.34]
[1746766865701,6.174,162.0,161.97,6.1747]
[1746766873406,27.64,162.02,161.95,27.64]
[1746766873606,27.64,162.02,161.93,29.5309]
[1746766873907,6.1748,161.98,161.95,6.1755]
[1746766874801,6.1742,161.99,161.96,6.1752]
[1746766875202,27.62,162.01,161.93,55.24]
[1746766875403,33.7934,162.01,161.93,55.24]
[1746766875705,27.62,162.01,161.93,55.24]
[1746766876008,6.1738,162.0,161.97,6.1746]
[1746766876209,27.62,162.01,161.93,55.24]
[1746766876611,33.7936,162.01,161.93,55.24]
[1746766877409,6.1736,162.01,161.93,55.24]
[1746766877610,6.1739,162.0,161.93,55.24]
[1746766878011,6.1739,162.0,161.97,6.1748]
[1746766878312,6.1739,162.0,161.93,55.24]
[1746766878510,6.1739,162.0,161.97,6.1745]
[1746766879010,6.1739,162.0,161.98,6.1744]
[1746766879214,6.1735,162.01,161.98,6.1744]
[1746766879906,6.1735,162.01,161.92,6.18119298]
[1746766880107,6.1735,162.01,161.89,6.0656]
[1746766880108,27.64,162.02,161.95,6.1756]
[1746766880507,6.1744,161.99,161.95,6.1756]
[1746766880710,27.64,162.02,161.95,6.1756]
[1746766881715,6.1747,161.98,161.95,6.1756]
[1746766881916,27.62,162.0,161.89,6.0656]
[1746766882117,27.62,161.98,161.89,33.6856]
[1746766882416,6.1763,161.94,161.9,6.1773]
[1746766883015,6.1764,161.93,161.9,6.1773]
[1746766883612,6.1764,161.93,161.85,3.9872]
[1746766883816,6.1764,161.93,161.83,9.20558069]
[1746766883817,55.24,161.92,161.83,9.20558069]
[1746766884011,57.1717,161.92,161.83,7.25038069]
[1746766884315,59.1493,161.92,161.83,7.25038069]
[1746766884915,59.1493,161.92,161.79,33.5312]
[1746766885916,6.1785,161.88,161.83,6.18]
[1746766886213,27.62,161.88,161.83,6.18]
[1746766886416,27.62,161.88,161.8,27.62]
[1746766887017,33.7984,161.88,161.84,6.1797]
[1746766887210,27.62,161.88,161.8,33.80119298]
[1746766887615,33.7983,161.88,161.84,6.1796]
[1746766888013,33.7983,161.88,161.8,33.80119298]
[1746766889017,33.7983,161.88,161.85,6.1794]
[1746766889219,33.7983,161.88,161.8,33.80119298]
[1746766889719,33.7983,161.88,161.85,6.1793]
[1746766891213,27.62,161.88,161.86,6.179]
[1746766892515,27.62,161.88,161.85,6.1793]
[1746766893223,33.7983,161.88,161.85,6.1793]
[1746766893624,27.62,161.88,161.85,6.1793]
[1746766894515,27.62,161.88,161.79,5.9112]
[1746766894932,6.1797,161.85,161.81,6.1809]
[1746766895322,55.46,161.88,161.79,5.9112]
[1746766895829,6.1794,161.86,161.79,5.9112]
[1746766896130,55.46,161.88,161.79,5.9112]
[1746766896322,55.46,161.88,161.79,12.0928]
[1746766896323,6.1803,161.83,161.79,12.0928]
[1746766896923,6.1803,161.83,161.8,6.1813]
[1746766897228,55.46,161.88,161.8,6.1813]
[1746766897629,55.46,161.88,161.79,12.0928]
[1746766897819,55.46,161.88,161.79,10.1206]
[1746766898020,6.18119298,161.87,161.75,27.64]
[1746766898224,6.1809,161.82,161.76,27.96]
[1746766898831,6.1809,161.82,161.75,27.64]
[1746766899030,6.1809,161.82,161.76,27.94]
[1746766899231,6.1806,161.82,161.76,27.94]
[1746766899431,27.64,161.84,161.76,27.94]
[1746766899732,27.64,161.84,161.78,6.1821]
[1746766900028,6.1809,161.82,161.78,6.1821]
[1746766900233,27.98,161.83,161.71,5.9655]
[1746766900432,27.98,161.83,161.71,33.9455]
[1746766900625,33.82119298,161.84,161.71,33.9455]
[1746766900831,27.96,161.83,161.73,6.18119298]
[1746766901026,27.96,161.83,161.74,27.96]
[1746766901226,27.96,161.83,161.75,28.02]
[1746766901633,6.1811,161.81,161.77,6.1822]
[1746766902232,6.1811,161.81,161.78,6.1821]
[1746766902441,6.1807,161.82,161.78,6.1821]
[1746766902641,27.96,161.83,161.75,28.02]
[1746766903242,27.96,161.83,161.79,6.1814]
[1746766903941,6.1808,161.82,161.78,6.182]
[1746766905542,6.1808,161.82,161.79,6.1817]
[1746766905742,34.1403,161.83,161.79,6.1817]
[1746766906145,27.96,161.83,161.79,6.1817]
[1746766906338,27.96,161.83,161.75,28.02]
[1746766906540,27.96,161.83,161.76,6.18119298]
[1746766906940,27.96,161.83,161.8,6.1811]
[1746766907446,27.96,161.83,161.81,6.1809]
[1746766907647,6.1795,161.85,161.77,3.8861]
[1746766907850,563.8081,161.86,161.77,5.8759]
[1746766908045,561.9,161.86,161.82,6.1804]
[1746766908949,6.1796,161.85,161.82,6.1804]
[1746766909145,561.9,161.86,161.82,6.1804]
[1746766909347,27.98,161.86,161.79,27.98]
[1746766909542,27.98,161.89,161.79,34.16119298]
[1746766910048,6.1786,161.88,161.79,34.16119298]
[1746766910949,6.1786,161.88,161.84,6.1796]
[1746766911549,6.1787,161.87,161.84,6.1796]
[1746766912346,6.1784,161.88,161.84,6.1796]
[1746766913149,6.1787,161.87,161.84,6.1796]
[1746766913352,27.98,161.89,161.84,6.1796]
[1746766913643,6.1784,161.88,161.84,6.1796]
[1746766915554,6.1784,161.88,161.85,6.1794]
[1746766915754,34.158,161.89,161.79,34.16119298]
[1746766916153,34.158,161.89,161.85,6.1791]
[1746766916354,27.98,161.89,161.83,28.0]
[1746766916654,27.98,161.92,161.87,6.1784]
[1746766917153,27.98,161.92,161.86,6.1789]
[1746766917453,6.1778,161.9,161.86,6.1789]
[1746766917656,27.98,161.92,161.84,2.0287]
[1746766917952,27.98,161.92,161.87,6.1784]
[1746766918151,6.1778,161.9,161.87,6.1784]
[1746766918453,27.98,161.92,161.87,6.1784]
[1746766918654,6.1776,161.9,161.87,6.1784]
[1746766919156,6.1776,161.9,161.86,6.179]
[1746766920458,6.1779,161.89,161.86,6.179]
[1746766920658,27.98,161.92,161.87,6.1787]
[1746766921155,6.1778,161.9,161.87,6.1787]
[1746766922057,6.1773,161.91,161.87,6.1787]
[1746766922556,6.1773,161.91,161.88,6.1782]
[1746766922857,6.1776,161.9,161.83,29.9744]
[1746766923056,6.1776,161.9,161.83,31.9824]
[1746766924053,534.08,161.94,161.83,31.9824]
[1746766924254,27.96,161.93,161.84,1.9061]
[1746766924654,34.1367,161.93,161.84,1.9061]
[1746766925357,6.1768,161.92,161.89,6.1776]
[1746766926356,27.96,161.93,161.86,27.9]
[1746766927561,34.1366,161.93,161.89,6.1775]
[1746766927757,27.96,161.93,161.89,6.1775]
[1746766928562,6.177,161.92,161.89,6.1775]
[1746766928763,27.96,161.93,161.89,6.1775]
[1746766928963,27.96,161.93,161.88,6.1782]
[1746766929664,6.1774,161.91,161.88,6.1782]
[1746766930162,27.96,161.93,161.86,27.9]
[1746766930360,6.1778,161.9,161.86,27.9]
[1746766930555,27.96,161.93,161.85,27.98]
[1746766930761,6.1781,161.89,161.85,27.98]
[1746766931666,27.96,161.93,161.85,27.98]
[1746766931866,562.0,161.94,161.88,6.178]
[1746766931867,27.96,161.92,161.88,6.178]
[1746766932365,6.1772,161.91,161.88,6.178]
[1746766933469,6.1777,161.9,161.87,6.1785]
[1746766933768,27.96,161.92,161.85,27.98]
[1746766934872,6.1782,161.89,161.85,34.1591]
[1746766935072,6.1782,161.89,161.85,27.98]
[1746766935374,6.1777,161.9,161.85,27.98]
[1746766935574,27.96,161.92,161.85,27.98]
[1746766936176,6.1776,161.9,161.87,6.1784]
[1746766936776,6.1779,161.89,161.86,6.179]
[1746766937377,6.1777,161.9,161.86,6.179]
[1746766937876,6.1773,161.91,161.84,27.96]
[1746766938178,27.96,161.92,161.84,27.96]
[1746766938478,6.178,161.89,161.86,6.1788]
[1746766939279,6.1776,161.9,161.87,6.1784]
[1746766940984,6.178,161.89,161.87,6.1784]
[1746766941176,6.178,161.89,161.86,6.1789]
[1746766941682,27.96,161.92,161.83,3.9824]
[1746766941885,6.18119298,161.9,161.81,55.84]
[1746766942180,34.06119298,161.9,161.81,27.88]
[1746766942376,34.06119298,161.9,161.78,6.18119298]
[1746766942578,34.06119298,161.9,161.8,27.88]
[1746766942778,6.18119298,161.84,161.68,12.3715]
[1746766942979,57.9633,161.83,161.7,61.98404559]
[1746766943177,57.9633,161.83,161.72,56.92152278]
[1746766943476,57.9633,161.83,161.75,6.1831]
[1746766943675,57.9633,161.83,161.72,56.92152278]
[1746766943885,6.1815,161.8,161.76,6.1828]
[1746766944181,57.9633,161.83,161.76,6.1828]
[1746766944383,6.181,161.81,161.76,6.1826]
[1746766944877,6.181,161.81,161.72,84.88152278]
[1746766945275,6.181,161.81,161.72,55.88]
[1746766945684,57.9633,161.83,161.78,6.1818]
[1746766945882,57.9633,161.83,161.72,55.88]
[1746766946282,6.1807,161.82,161.72,55.88]
[1746766946685,57.9633,161.83,161.72,55.88]
[1746766946887,57.9633,161.83,161.78,6.1819]
[1746766947486,6.1807,161.82,161.78,6.1819]
[1746766948485,6.181,161.81,161.78,6.1819]
[1746766948685,57.9633,161.83,161.78,6.1819]
[1746766948986,6.1808,161.82,161.78,6.1819]
[1746766949284,57.9633,161.83,161.78,6.1819]
[1746766949484,6.1808,161.82,161.78,6.1819]
[1746766949881,57.9633,161.83,161.79,6.1815]
[1746766950088,6.1806,161.82,161.79,6.1815]
[1746766950384,6.1806,161.82,161.76,27.88]
[1746766950686,6.1806,161.82,161.78,6.182]
[1746766951088,6.1806,161.82,161.76,27.88]
[1746766951292,34.1403,161.83,161.79,6.1815]
[1746766951495,34.1403,161.83,161.77,2.0274]
[1746766952695,34.1403,161.83,161.79,6.1815]
[1746766953190,6.1803,161.83,161.77,2.0274]
[1746766955592,34.1599,161.84,161.77,2.0274]
[1746766955799,34.1599,161.84,161.77,4.0947]
[1746766955994,34.1599,161.84,161.77,6.1006]
[1746766956191,27.98,161.84,161.77,6.1006]
[1746766956389,2.0551,161.89,161.79,6.18119298]
[1746766956591,30.0351,161.89,161.8,55.92]
[1746766956789,34.1581,161.89,161.86,6.179]
[1746766958099,27.98,161.89,161.87,6.1786]
[1746766958394,27.98,161.89,161.84,27.92]
[1746766958894,27.98,161.89,161.81,27.92]
[1746766959291,6.1788,161.87,161.83,6.1801]
[1746766959496,6.1788,161.87,161.81,27.92]
[1746766959795,6.1788,161.87,161.83,6.18]
[1746766959996,6.1788,161.87,161.81,27.92]
[1746766960294,6.1788,161.87,161.84,6.1798]
[1746766960496,6.1791,161.86,161.81,27.92]
[1746766960995,6.1791,161.86,161.82,6.1803]
[1746766961195,6.1788,161.87,161.81,27.92]
[1746766961496,6.1788,161.87,161.83,6.18]
[1746766961796,6.1791,161.86,161.83,6.18]
[1746766962497,27.98,161.89,161.81,27.92]
[1746766962696,27.98,161.89,161.79,55.9]
[1746766962895,2.0898,161.88,161.77,6.1006]
[1746766963086,34.12119298,161.87,161.77,6.1006]
[1746766963597,27.94,161.87,161.77,6.1006]
[1746766964197,6.1801,161.84,161.81,6.181]
[1746766964396,27.94,161.87,161.77,6.1006]
[1746766964698,6.1801,161.84,161.81,6.1809]
[1746766964996,27.94,161.87,161.77,6.1006]
[1746766965189,6.1801,161.84,161.8,6.1813]
[1746766965395,6.1801,161.84,161.77,6.1006]
[1746766965594,27.96,161.85,161.77,6.1006]
[1746766966100,6.1806,161.82,161.79,6.1816]
[1746766966699,6.181,161.81,161.78,6.182]
[1746766967000,27.96,161.85,161.77,32.0147]
[1746766967299,27.96,161.85,161.77,29.9474]
[1746766967896,6.1806,161.82,161.79,6.1815]
[1746766968097,27.96,161.85,161.79,6.1815]
[1746766968295,27.96,161.85,161.77,2.0274]
[1746766969003,6.1812,161.81,161.77,8.2095]
[1746766969296,6.1812,161.81,161.77,2.0274]
[1746766969595,6.1812,161.81,161.78,6.1819]
[1746766970200,27.96,161.85,161.77,8.2098]
[1746766970400,27.96,161.85,161.77,6.1824]
[1746766971695,6.1818,161.79,161.75,27.86]
[1746766971894,27.96,161.85,161.75,27.86]
[1746766972998,27.96,161.84,161.75,34.04119298]
[1746766973196,27.96,161.84,161.76,4.0897]
[1746766973392,27.96,161.84,161.77,27.96]
[1746766973591,27.96,161.84,161.77,29.8706]
[1746766973801,27.96,161.84,161.82,6.1805]
[1746766974104,6.1797,161.85,161.82,6.1805]
[1746766976103,34.1992,161.86,161.83,6.1802]
[1746766976296,27.96,161.87,161.79,28.06]
[1746766976796,6.1791,161.86,161.83,6.1799]
[1746766981005,34.1388,161.87,161.84,6.1798]
[1746766981304,8.25719298,161.9,161.83,27.7]
[1746766981305,27.96,161.9,161.83,27.7]
[1746766982105,6.1785,161.88,161.85,6.1793]
[1746766982905,6.1785,161.88,161.84,6.1797]
[1746766983408,6.1785,161.88,161.85,6.1794]
[1746766984305,6.1781,161.89,161.85,6.1794]
[1746766984605,27.96,161.9,161.85,6.1794]
[1746766985009,27.96,161.9,161.84,6.1798]
[1746766986305,6.1786,161.88,161.84,6.1798]
[1746766987199,6.1788,161.87,161.84,6.1798]
[1746766987405,27.96,161.9,161.83,33.88]
[1746766987904,6.179,161.87,161.84,6.1798]
[1746766988209,6.179,161.87,161.83,27.7]
[1746766988507,6.179,161.87,161.83,33.88]
[1746766988805,6.179,161.87,161.83,27.7]
[1746766989106,6.179,161.87,161.84,6.1798]
[1746766989308,6.1792,161.86,161.81,55.64]
[1746766991009,6.1795,161.85,161.82,6.1804]
[1746766991509,27.96,161.9,161.81,61.82119298]
[1746766993009,55.36,161.93,161.81,61.82119298]
[1746766993308,6.177,161.92,161.89,6.1779]
[1746766993506,27.68,161.93,161.86,27.68]
[1746766994204,6.1768,161.92,161.86,27.68]
[1746766994710,33.8566,161.93,161.89,6.1776]
[1746766995208,27.68,161.93,161.88,6.1782]
[1746766996014,27.68,161.93,161.87,6.1785]
[1746766996608,27.68,161.93,161.86,33.8587]
[1746766997507,27.68,161.93,161.86,27.68]
[1746766997903,6.1773,161.91,161.88,6.178]
[1746766998204,6.1773,161.91,161.86,27.68]
[1746766998205,561.76,161.94,161.86,27.68]
[1746766998514,6.1765,161.93,161.9,6.1772]
[1746766999309,561.76,161.94,161.86,31.7141]
[1746766999505,561.76,161.94,161.85,29.5947]
[1746767000007,6.1778,161.9,161.87,6.1787]
[1746767000611,6.1779,161.89,161.86,6.1789]
[1746767001611,6.1783,161.88,161.85,6.1793]
[1746767001910,27.66,161.9,161.84,27.68]
[1746767002305,27.66,161.9,161.88,6.1782]
[1746767002909,27.66,161.9,161.85,27.68]
[1746767004110,6.1781,161.89,161.86,6.1788]
[1746767004305,27.66,161.9,161.85,27.68]
[1746767006314,27.66,161.9,161.89,6.1779]
[1746767006514,27.66,161.93,161.85,27.68]
[1746767006815,27.66,161.93,161.9,6.1772]
[1746767007014,27.66,161.93,161.86,3.9999]
[1746767007812,27.66,161.93,161.87,2.1073]
[1746767008517,33.8365,161.93,161.87,2.1073]
[1746767008816,27.66,161.93,161.87,2.1073]
[1746767009019,27.66,161.93,161.92,6.1768]
[1746767009214,6.1757,161.95,161.92,6.1768]
[1746767009418,27.66,161.96,161.92,6.1768]
[1746767009716,6.1756,161.95,161.92,6.1768]
[1746767010515,6.1756,161.95,161.91,6.177]
[1746767010716,6.1761,161.94,161.91,6.177]
[1746767011212,6.1758,161.95,161.91,6.177]
[1746767011412,6.1758,161.95,161.89,27.68]
[1746767011413,6.1758,161.95,161.92,6.1767]
[1746767012311,6.1758,161.95,161.91,6.1769]
[1746767012817,6.176,161.94,161.91,6.1769]
[1746767013021,27.66,161.96,161.9,6.1774]
[1746767013513,55.34,161.96,161.91,6.1771]
[1746767014621,6.1762,161.94,161.89,33.8576]
[1746767014920,6.1762,161.94,161.89,27.68]
[1746767015119,6.1766,161.93,161.89,27.68]
[1746767015419,55.34,161.96,161.89,27.68]
[1746767015819,55.34,161.96,161.87,29.7673]
[1746767016022,55.34,161.96,161.88,6.178]
[1746767016221,6.1767,161.93,161.87,29.7673]
[1746767016422,55.34,161.96,161.87,29.7673]
[1746767016621,6.177,161.92,161.89,6.1777]
[1746767017420,6.1765,161.93,161.89,6.1777]
[1746767019323,6.1765,161.93,161.9,6.1774]
[1746767020925,27.66,161.96,161.91,6.1769]
[1746767021525,6.1759,161.95,161.91,6.1769]
[1746767021922,27.66,161.96,161.91,6.1769]
[1746767022731,27.66,161.96,161.92,6.1767]
[1746767023425,6.1759,161.95,161.92,6.1767]
[1746767023621,6.1759,161.95,161.91,6.177]
[1746767024924,6.1761,161.94,161.91,6.177]
[1746767025532,6.1758,161.95,161.92,6.1767]
[1746767025821,80.42927495,161.98,161.9,33.84119298]
[1746767026122,6.1739,162.0,161.97,6.1746]
[1746767026327,27.66,162.02,161.95,27.66]
[1746767026728,6.1734,162.01,161.95,27.66]
[1746767027117,6.1734,162.01,161.98,6.1742]
[1746767030227,6.1738,162.0,161.97,6.1747]
[1746767030423,27.66,162.02,161.97,6.1747]
[1746767030624,27.66,162.02,161.95,27.66]
[1746767030925,33.8332,162.02,161.98,6.1741]
[1746767031731,6.1734,162.01,161.98,6.1741]
[1746767035233,27.66,162.02,161.95,27.66]
[1746767035936,27.66,162.02,161.95,55.32]
[1746767036432,27.66,162.02,161.96,6.18119298]
[1746767036631,27.66,162.05,161.96,6.18119298]
[1746767036932,33.8321,162.05,162.01,6.173]
[1746767037436,6.1722,162.04,162.01,6.173]
[1746767038136,27.66,162.05,162.02,6.1727]
[1746767038838,33.8321,162.05,162.02,6.1727]
[1746767039342,27.66,162.05,162.01,6.1732]
[1746767039535,6.1725,162.04,162.01,6.1732]
[1746767040133,33.832,162.05,162.02,6.1729]
[1746767041227,27.66,162.05,162.03,6.1725]
[1746767041433,27.66,162.05,161.99,33.84119298]
[1746767041735,27.66,162.09,162.0,2.0209]
[1746767041736,27.64,162.08,162.0,2.0209]
[1746767042240,6.1717,162.06,162.0,2.0209]
[1746767042539,27.64,162.08,162.05,6.1714]
[1746767043037,27.64,162.08,162.0,5.8791]
[1746767043234,6.1712,162.07,162.03,6.1722]
[1746767044039,6.1712,162.07,162.04,6.1721]
[1746767047339,27.64,162.08,162.04,6.1721]
[1746767048935,6.1711,162.07,162.04,6.1721]